bitfinex-derivatives/quotes_ETHF0:USTF0_20240925
["timestamp","ask_amount","ask_price","bid_price","bid_amount"]
[1727254775053,0.38068,2626.8,2626.7,0.99806555]
[1727254775257,0.38068,2626.8,2626.7,1.39136555]
[1727254776360,0.38068,2626.8,2626.7,0.3933]
[1727254776551,0.38068,2626.8,2626.7,1.39136555]
[1727254777550,0.38068,2626.8,2626.7,0.3933]
[1727254781665,0.38067,2626.8,2626.7,0.3933]
[1727254783362,0.38067,2626.8,2626.7,1.39136555]
[1727254783962,0.38067,2626.8,2626.7,0.3933]
[1727254785061,0.38067,2626.8,2626.7,1.39136555]
[1727254785659,2.99648538,2626.8,2626.7,0.3933]
[1727254785866,3.37715538,2626.8,2626.7,0.3933]
[1727254791772,2.99648538,2626.8,2626.7,0.3933]
[1727254792472,3.37715538,2626.8,2626.7,0.3933]
[1727254792667,0.38067,2626.8,2626.7,3.25066774]
[1727254794273,1.15426,2626.9,2626.7,3.25066774]
[1727254794474,1.15426,2626.9,2626.8,0.99825805]
[1727254797876,1.15426,2626.9,2626.8,2.35900652]
[1727254798674,1.15426,2626.9,2626.8,1.36074847]
[1727254798876,1.15426,2626.9,2626.8,2.35897629]
[1727254799173,1.15426,2626.9,2626.8,2.35900168]
[1727254800076,1.15426,2626.9,2626.8,1.36074847]
[1727254800264,1.15426,2626.9,2626.8,2.85755376]
[1727254800467,1.15426,2626.9,2626.8,1.36074847]
[1727254800676,1.15426,2626.9,2626.7,0.3933]
[1727254800877,2.99823185,2626.8,2626.7,0.3933]
[1727254802577,3.37890185,2626.8,2626.7,0.3933]
[1727254802779,2.99823185,2626.8,2626.7,0.3933]
[1727254803076,3.37890185,2626.8,2626.7,0.3933]
[1727254803285,4.26586746,2626.9,2626.5,1.4982]
[1727254803579,2.99835614,2626.7,2626.6,0.38069]
[1727254803775,2.99835614,2626.8,2626.6,0.38069]
[1727254804178,2.99835614,2626.7,2626.6,0.38069]
[1727254804482,2.99835614,2626.8,2626.6,0.38069]
[1727254804680,2.99835614,2626.8,2626.5,1.4982]
[1727254804873,2.99835614,2626.8,2626.7,0.38068]
[1727254805783,2.99835614,2626.8,2626.6,0.38069]
[1727254805984,3.37902614,2626.8,2626.6,0.38069]
[1727254806281,3.75342614,2626.8,2626.6,0.38069]
[1727254806788,3.37275614,2626.8,2626.6,0.38069]
[1727254807683,0.3744,2626.8,2626.7,2.85782343]
[1727254808285,0.3744,2626.8,2626.7,1.36101814]
[1727254809579,0.3744,2626.8,2626.7,1.36094008]
[1727254810791,0.3744,2626.8,2626.7,1.36093356]
[1727254811690,0.3987,2627.0,2626.7,1.74161356]
[1727254811987,1.16044,2627.0,2626.9,0.99834687]
[1727254815791,0.38065,2626.9,2626.8,1.74104687]
[1727254816097,0.38065,2626.9,2626.8,3.10139479]
[1727254817090,1.33235,2626.8,2626.7,0.99834687]
[1727254817289,1.33235,2626.8,2626.5,2.49586718]
[1727254817290,0.95171,2626.7,2626.5,2.49586718]
[1727254817495,0.95171,2626.7,2626.3,0.99834687]
[1727254817496,0.38073,2626.4,2626.3,0.99834687]
[1727254818292,0.38072,2626.5,2626.3,0.99834687]
[1727254818484,1.1443,2626.6,2626.3,1.37908687]
[1727254818686,0.38071,2626.5,2626.4,2.09834687]
[1727254820597,0.38071,2626.5,2626.4,1.1]
[1727254820790,0.38071,2626.5,2626.4,2.09834687]
[1727254820995,0.38071,2626.5,2626.4,1.1]
[1727254823109,0.38071,2626.5,2626.2,5.06495]
[1727254823306,0.38071,2626.5,2626.2,1.85715]
[1727254823806,0.38073,2626.4,2626.2,1.4764]
[1727254823997,0.38073,2626.4,2626.2,0.3764]
[1727254824297,0.7763,2626.3,2626.2,0.3764]
[1727254824695,0.7763,2626.3,2626.2,0.75715]
[1727254825502,0.7763,2626.3,2626.2,0.3764]
[1727254830702,0.38077,2626.1,2625.8,1.4808]
[1727254831008,0.38077,2626.1,2626.0,0.99674526]
[1727254831205,0.38077,2626.1,2625.9,1.39924526]
[1727254831206,0.38078,2626.0,2625.9,1.39924526]
[1727254831503,0.3808,2625.9,2625.8,1.39074526]
[1727254831910,0.3808,2626.0,2625.8,1.39074526]
[1727254832104,4.6818,2626.2,2625.8,1.39074526]
[1727254832300,0.38079,2626.0,2625.8,1.39074526]
[1727254833115,4.6818,2626.2,2625.8,1.39074526]
[1727254833606,0.38079,2626.0,2625.8,1.39074526]
[1727254833805,0.38079,2626.0,2625.8,2.49074526]
[1727254835607,0.38079,2626.0,2625.8,1.494]
[1727254836004,0.38079,2626.0,2625.8,2.87155526]
[1727254836202,0.38078,2626.1,2625.8,2.49074526]
[1727254836404,3.5818,2626.2,2625.9,0.78539]
[1727254836603,3.96257,2626.2,2626.0,1.1]
[1727254836802,0.38077,2626.1,2626.0,1.4867]
[1727254837214,3.2078,2626.2,2626.1,0.38077]
[1727254837407,1.30681,2626.5,2626.1,4.908]
[1727254837408,0.355,2626.5,2626.1,4.908]
[1727254837613,1.139,2626.6,2626.4,1.1]
[1727254837915,0.73568,2626.8,2626.5,0.7674]
[1727254838122,0.38068,2626.7,2626.6,1.4949]
[1727254838615,0.38067,2626.8,2626.6,0.3949]
[1727254839411,6.92563,2627.0,2626.6,0.3949]
[1727254839608,0.38067,2626.8,2626.6,0.3949]
[1727254843016,0.38068,2626.7,2626.6,0.3949]
[1727254843416,0.38068,2626.8,2626.6,0.3949]
[1727254843614,0.38068,2626.7,2626.6,0.3949]
[1727254847620,0.3807,2626.6,2626.5,0.3867]
[1727254847813,0.3807,2626.6,2626.2,0.752]
[1727254847814,0.38073,2626.4,2626.2,0.752]
[1727254848121,0.38073,2626.4,2626.3,0.3819]
[1727254853017,5.85904,2626.4,2625.8,0.38081]
[1727254853228,2.05184,2626.4,2625.9,0.38079]
[1727254853531,0.38077,2626.2,2626.0,1.1]
[1727254854230,0.38077,2626.1,2626.0,1.1]
[1727254854928,0.38076,2626.2,2626.0,1.1]
[1727254858534,0.38076,2626.2,2626.1,0.4042]
[1727254860725,1.3433,2626.5,2626.1,0.4042]
[1727254860926,1.3433,2626.5,2626.2,0.7684]
[1727254860927,0.3915,2626.5,2626.2,0.7684]
[1727254861238,0.38073,2626.4,2626.2,0.7684]
[1727254861825,0.38073,2626.4,2626.2,2.24915]
[1727254862029,0.38073,2626.4,2626.2,3.24589526]
[1727254862229,0.38073,2626.4,2626.2,2.24915]
[1727254862426,0.38073,2626.4,2626.2,3.24589526]
[1727254862828,0.38073,2626.4,2626.2,2.86514526]
[1727254866030,0.38074,2626.3,2626.2,2.86514526]
[1727254867033,0.38074,2626.3,2626.2,1.8684]
[1727254867340,0.38074,2626.3,2626.2,2.86514526]
[1727254868031,0.38074,2626.3,2626.2,1.8684]
[1727254869639,0.38073,2626.4,2626.2,1.8684]
[1727254869839,0.38074,2626.3,2626.2,1.8684]
[1727254870036,0.7725,2626.6,2626.2,1.8684]
[1727254870237,0.355,2626.8,2626.6,0.38069]
[1727254870433,3.5937,2626.9,2626.7,1.1654]
[1727254870641,0.38067,2626.8,2626.7,1.1654]
[1727254871537,4.6937,2626.9,2626.5,0.99674526]
[1727254871733,0.38071,2626.5,2626.4,0.7762]
[1727254871934,1.1,2626.5,2626.2,0.99674526]
[1727254872140,0.75264,2626.4,2626.1,1.39154526]
[1727254872337,0.75264,2626.4,2626.1,2.87230526]
[1727254872744,0.38074,2626.3,2626.1,2.87230526]
[1727254873039,0.75264,2626.4,2626.1,2.87230526]
[1727254873832,0.38074,2626.3,2626.1,2.87230526]
[1727254875038,0.38074,2626.3,2626.1,1.87556]
[1727254877243,0.38075,2626.2,2626.1,1.4948]
[1727254877433,0.38075,2626.2,2626.1,0.3948]
[1727254878540,0.75725,2626.3,2626.1,0.3948]
[1727254879235,0.38075,2626.2,2626.1,0.3948]
[1727254880340,0.38075,2626.2,2625.6,0.99674526]
[1727254880341,1.1,2626.2,2625.6,0.99674526]
[1727254880538,0.3808,2625.9,2625.7,1.72975543]
[1727254880739,0.3808,2625.9,2625.7,1.1344]
[1727254881747,0.7824,2625.9,2625.7,1.1344]
[1727254882331,0.4016,2625.9,2625.7,1.1344]
[1727254882737,0.7824,2625.9,2625.7,1.1344]
[1727254882938,0.4016,2625.9,2625.7,1.1344]
[1727254883136,0.7824,2625.9,2625.8,0.99674526]
[1727254883338,5.5424,2625.9,2625.8,0.99674526]
[1727254883546,5.5424,2625.9,2625.4,2.38002225]
[1727254883547,0.38081,2625.8,2625.7,0.99674526]
[1727254883745,0.38081,2625.8,2625.5,1.49752031]
[1727254883746,0.38083,2625.7,2625.6,0.99674526]
[1727254884746,1.86592,2625.8,2625.6,0.99674526]
[1727254884938,0.38083,2625.7,2625.6,0.99674526]
[1727254885142,0.76592,2625.8,2625.6,0.99674526]
[1727254885646,0.76592,2625.8,2625.7,0.4022]
[1727254890653,0.76592,2625.8,2625.5,1.1]
[1727254890654,1.4851,2625.8,2625.4,0.3812]
[1727254890946,1.4851,2625.8,2625.4,1.8845]
[1727254890947,0.38085,2625.6,2625.4,1.8845]
[1727254892743,0.38084,2625.7,2625.4,2.26537]
[1727254894050,0.38084,2625.6,2625.4,1.8845]
[1727254894747,0.38084,2625.6,2625.4,2.26537]
[1727254895248,0.38084,2625.6,2625.4,1.8845]
[1727254896950,0.38084,2625.6,2625.4,2.26537]
[1727254897150,0.38084,2625.6,2625.4,1.8845]
[1727254897856,0.38086,2625.5,2625.4,1.8845]
[1727254899853,0.38086,2625.5,2625.4,2.26537]
[1727254900560,0.38086,2625.5,2625.4,1.8845]
[1727254900755,0.38085,2625.6,2625.4,1.8845]
[1727254901061,0.38085,2625.6,2625.4,2.26536]
[1727254902160,0.3851,2625.8,2625.6,0.38083]
[1727254902453,0.38081,2625.8,2625.7,1.4935]
[1727254902657,0.38081,2625.8,2625.7,1.8634]
[1727254904163,0.38081,2625.8,2625.7,0.7634]
[1727254905956,3.6094,2625.9,2625.7,1.14422]
[1727254905957,3.9902,2625.9,2625.7,1.14422]
[1727254906160,0.355,2626.2,2625.8,1.1]
[1727254906354,0.38078,2626.1,2625.8,1.8637]
[1727254906550,0.38078,2626.1,2625.8,2.47964526]
[1727254907155,0.38078,2626.1,2625.9,0.38079]
[1727254907663,0.38078,2626.1,2626.0,0.3767]
[1727254907964,3.2078,2626.3,2626.0,1.85748]
[1727254908860,3.2078,2626.3,2626.0,0.3767]
[1727254909053,1.48076,2626.2,2626.0,0.3767]
[1727254911562,0.38077,2626.1,2626.0,0.3767]
[1727254912852,0.77787,2626.1,2626.0,0.3767]
[1727254913054,0.3971,2626.1,2626.0,0.3767]
[1727254914767,0.77787,2626.1,2626.0,0.3767]
[1727254922467,0.38076,2626.2,2626.0,1.37344526]
[1727254922768,0.7617,2626.6,2626.1,6.66272589]
[1727254922962,0.381,2626.6,2626.3,2.09561285]
[1727254923272,1.1,2626.4,2626.1,1.37751285]
[1727254923568,1.15014,2626.3,2626.1,0.3819]
[1727254923875,0.38075,2626.2,2626.1,0.3819]
[1727254924076,1.15015,2626.3,2626.1,0.3819]
[1727254924369,1.15015,2626.3,2626.1,1.37751285]
[1727254925889,0.7694,2626.3,2626.1,1.37751285]
[1727254926171,0.3658,2626.5,2626.1,1.37751285]
[1727254926172,0.3658,2626.5,2626.2,0.99561285]
[1727254926368,0.7588,2626.5,2626.3,0.3729]
[1727254926576,0.38073,2626.4,2626.3,0.3729]
[1727254926770,0.393,2626.5,2626.3,0.3729]
[1727254926965,3.2078,2626.6,2626.4,1.48072]
[1727254927173,3.2078,2626.6,2626.4,2.84123285]
[1727254927571,3.2078,2626.6,2626.4,1.4649]
[1727254928275,3.5885,2626.6,2626.4,0.3649]
[1727254928468,3.2078,2626.6,2626.4,0.3649]
[1727254929172,3.5885,2626.6,2626.4,0.3649]
[1727254929372,0.4029,2626.5,2626.4,0.3649]
[1727254930764,0.78361,2626.5,2626.4,0.3649]
[1727254932278,0.4029,2626.5,2626.4,0.3649]
[1727254932474,3.5885,2626.6,2626.4,0.3649]
[1727254932475,3.2078,2626.6,2626.4,0.74562]
[1727254932678,3.2078,2626.6,2626.5,0.394]
[1727254932877,3.5885,2626.6,2626.5,0.394]
[1727254933474,3.2078,2626.6,2626.5,0.394]
[1727254935774,3.5885,2626.6,2626.5,0.394]
[1727254936483,0.38071,2626.5,2626.4,0.3649]
[1727254936675,0.74961,2626.5,2626.4,0.3649]
[1727254936875,0.3689,2626.5,2626.4,0.3649]
[1727254939883,0.3689,2626.5,2626.4,0.74563]
[1727254940183,0.3689,2626.5,2626.4,0.3649]
[1727254941280,3.5885,2626.6,2626.4,0.74563]
[1727254941896,0.3807,2626.6,2626.4,0.74563]
[1727254942187,0.38071,2626.5,2626.4,0.3649]
[1727254942684,5.25956,2626.6,2626.2,1.37611285]
[1727254942882,0.7539,2626.4,2626.2,1.37611285]
[1727254943379,1.13463,2626.4,2626.2,1.75686285]
[1727254943579,1.13463,2626.4,2626.2,0.76125]
[1727254945879,5.25956,2626.6,2626.3,0.38074]
[1727254945880,0.38072,2626.5,2626.3,0.38074]
[1727254946074,0.38072,2626.5,2626.4,0.3821]
[1727254947983,3.5885,2626.6,2626.4,0.3821]
[1727254948188,0.38071,2626.5,2626.4,0.3821]
[1727254948393,3.58851,2626.6,2626.4,0.7764]
[1727254948683,0.783,2626.7,2626.4,1.15712]
[1727254948888,1.16369,2626.7,2626.5,0.38071]
[1727254949085,1.16368,2626.7,2626.6,0.3689]
[1727254952591,0.3923,2626.7,2626.6,0.3689]
[1727254953187,0.73562,2627.1,2626.6,6.27171285]
[1727254953388,0.771,2627.2,2627.1,0.38062]
[1727254953685,1.15161,2627.2,2627.0,2.47545907]
[1727254953891,1.15161,2627.2,2627.1,0.3763]
[1727254955788,0.771,2627.2,2627.1,0.3763]
[1727254956286,3.6014,2627.4,2627.1,5.2827]
[1727254956287,3.2078,2627.4,2627.1,5.2827]
[1727254956493,0.3802,2627.7,2627.3,1.1]
[1727254956792,0.3802,2627.7,2627.6,1.1]
[1727254957286,0.3854,2627.8,2627.6,1.4734]
[1727254957497,0.3801,2628.0,2627.8,0.38052]
[1727254957689,0.3801,2628.0,2627.9,1.1]
[1727254957889,0.76059,2628.0,2627.9,1.1]
[1727254958211,0.76059,2628.0,2627.8,1.1]
[1727254958394,0.3801,2628.0,2627.7,0.38053]
[1727254958589,0.3801,2628.0,2627.8,0.38052]
[1727254958792,3.2078,2628.2,2627.8,5.5878]
[1727254958988,3.58827,2628.2,2627.9,0.7789]
[1727254959189,3.2078,2628.2,2627.9,0.7789]
[1727254959389,3.2078,2628.2,2628.0,0.3858]
[1727254959593,3.2078,2628.2,2628.0,0.76629]
[1727254959794,3.2078,2628.2,2628.0,0.3858]
[1727254961400,3.58827,2628.2,2628.0,0.3858]
[1727254961698,3.2078,2628.2,2628.0,0.3858]
[1727254962100,3.2078,2628.2,2628.0,0.76629]
[1727254962298,0.3926,2628.3,2628.0,0.76629]
[1727254962486,0.77306,2628.3,2628.0,0.3858]
[1727254962890,0.38046,2628.2,2628.0,0.3858]
[1727254963101,0.38047,2628.2,2628.0,0.3858]
[1727254963290,0.77306,2628.3,2628.0,0.3858]
[1727254964701,0.38047,2628.2,2628.0,0.3858]
[1727254965293,3.2078,2628.5,2628.1,2.38]
[1727254965601,3.2078,2628.5,2628.3,2.38]
[1727254965808,3.2078,2628.5,2628.4,0.7814]
[1727254968703,3.58822,2628.5,2628.4,0.7814]
[1727254968900,3.2078,2628.5,2628.4,0.7814]
[1727254975217,3.58822,2628.5,2628.4,0.7814]
[1727254975415,3.2078,2628.5,2628.4,0.7814]
[1727254977415,3.58822,2628.5,2628.2,0.38046]
[1727254977615,0.3761,2628.4,2628.2,0.75706]
[1727254977814,0.3761,2628.4,2628.3,0.38045]
[1727254979207,0.75654,2628.4,2628.2,1.4766]
[1727254979608,0.3711,2628.3,2628.2,1.4766]
[1727254980005,0.3711,2628.3,2628.2,0.3766]
[1727254981915,0.75155,2628.3,2628.2,0.3766]
[1727254982117,0.38046,2628.2,2628.1,1.1]
[1727254982305,0.75156,2628.3,2628.0,1.48049]
[1727254982509,0.38047,2628.2,2628.0,1.48049]
[1727254983316,0.38047,2628.2,2628.0,1.1]
[1727254983515,0.38047,2628.2,2628.0,1.48049]
[1727254983712,3.95936,2628.3,2628.0,1.86989]
[1727254984108,0.38047,2628.2,2628.0,1.86989]
[1727254984514,3.5789,2628.3,2628.0,0.76989]
[1727254984515,0.3976,2628.1,2628.0,0.76989]
[1727254984720,0.3976,2628.1,2628.0,1.86989]
[1727254986217,0.3976,2628.1,2628.0,1.1]
[1727254986424,0.77808,2628.1,2628.0,1.1]
[1727254989020,0.3976,2628.1,2628.0,1.1]
[1727254989226,0.3976,2628.1,2628.0,1.48049]
[1727254989427,3.95936,2628.3,2628.1,0.38047]
[1727254989719,3.5789,2628.3,2628.2,1.483]
[1727254990226,3.5789,2628.3,2628.2,1.86346]
[1727254990721,3.2078,2628.3,2628.2,1.86346]
[1727254991318,0.76053,2628.5,2628.2,1.483]
[1727254991519,0.76053,2628.5,2628.4,1.1]
[1727254993027,0.3801,2628.5,2628.4,1.48044]
[1727254993323,1.14922,2628.6,2628.4,1.48044]
[1727254993628,1.14922,2628.6,2628.4,1.1]
[1727254993629,0.38042,2628.5,2628.4,1.1]
[1727254994424,1.14922,2628.6,2628.4,1.1]
[1727254995427,1.14922,2628.6,2628.4,1.48043]
[1727254995822,0.7688,2628.6,2628.4,1.1]
[1727254996021,1.14922,2628.6,2628.4,1.1]
[1727254996224,1.14922,2628.6,2628.4,1.48043]
[1727254996424,1.14921,2628.6,2628.4,1.48043]
[1727254996734,1.14921,2628.6,2628.4,1.48044]
[1727254997417,0.7688,2628.6,2628.4,1.48042]
[1727254998429,1.14921,2628.6,2628.4,1.48042]
[1727254998825,1.14921,2628.6,2628.5,0.3739]
[1727255002930,5.13663265,2628.6,2628.5,0.3739]
[1727255005627,5.13663265,2628.6,2628.3,2.25845]
[1727255005830,5.13663265,2628.6,2628.4,0.3798]
[1727255007235,5.13663265,2628.6,2628.4,0.76024]
[1727255007829,4.75622265,2628.6,2628.5,1.1]
[1727255008237,5.13663265,2628.6,2628.5,1.1]
[1727255008437,4.75622265,2628.6,2628.5,1.1]
[1727255008827,5.13663265,2628.6,2628.5,1.1]
[1727255010335,1.14921,2628.6,2628.5,1.1]
[1727255010533,5.64389416,2628.6,2628.5,1.1]
[1727255011135,1.14921,2628.6,2628.5,1.1]
[1727255014838,0.7688,2628.6,2628.5,1.1]
[1727255019043,1.14921,2628.6,2628.5,1.1]
[1727255019543,0.78001,2628.6,2628.5,1.1]
[1727255020650,8.09438416,2628.7,2628.5,1.1]
[1727255020945,0.38041,2628.6,2628.5,1.1]
[1727255021140,8.47478416,2628.7,2628.5,1.1]
[1727255021643,0.38041,2628.6,2628.5,1.1]
[1727255021845,4.37250205,2628.6,2628.5,1.1]
[1727255022139,3.49306427,2628.6,2628.5,5.28442]
[1727255022345,3.99209205,2628.7,2628.6,0.38041]
[1727255022545,3.99209205,2628.7,2628.6,1.1]
[1727255023150,4.37248205,2628.7,2628.6,1.1]
[1727255023352,4.75868205,2628.7,2628.6,1.1]
[1727255023539,4.49468416,2628.9,2628.6,1.1]
[1727255023540,3.99209205,2628.8,2628.6,1.1]
[1727255023739,3.99209205,2628.8,2628.7,1.864]
[1727255024044,3.99209205,2628.9,2628.8,0.38038]
[1727255024439,4.75865205,2629.0,2628.8,0.3779]
[1727255024638,4.75865205,2629.0,2628.9,1.1]
[1727255024838,0.76656,2629.0,2628.9,1.1]
[1727255025039,4.75678524,2629.0,2628.9,1.1]
[1727255025450,0.76656,2629.0,2628.9,1.1]
[1727255027149,0.38036,2628.9,2628.8,1.4779]
[1727255027950,0.38036,2628.9,2628.8,1.1]
[1727255029152,0.38039,2628.7,2628.6,1.4907]
[1727255029343,0.38039,2628.7,2628.4,2.85703]
[1727255029543,0.7465,2628.6,2628.4,2.24973]
[1727255029854,0.7465,2628.6,2628.5,4.10994671]
[1727255030248,0.7465,2628.6,2628.5,7.91394671]
[1727255030544,0.38038,2628.8,2628.5,4.18441]
[1727255030752,0.38038,2628.8,2628.6,1.1]
[1727255030953,0.7709,2628.9,2628.7,0.38039]
[1727255031246,0.38036,2629.0,2628.8,1.1]
[1727255031445,0.38036,2629.0,2628.8,1.4786]
[1727255033051,4.87504416,2629.0,2628.8,1.4786]
[1727255033941,3.98876725,2628.9,2628.8,1.4786]
[1727255034251,4.87504416,2629.0,2628.8,1.4786]
[1727255034953,0.38036,2628.9,2628.8,1.4786]
[1727255035145,4.87504416,2629.0,2628.8,1.4786]
[1727255035344,0.06312839,2628.9,2628.8,1.4786]
[1727255037155,4.87504416,2629.0,2628.8,1.4786]
[1727255037347,0.06312771,2628.9,2628.8,1.4786]
[1727255037543,0.06312771,2628.9,2628.8,1.85898]
[1727255037752,4.05266676,2628.9,2628.8,5.66298]
[1727255037947,3.49049036,2628.9,2628.8,5.66298]
[1727255038448,3.49049036,2629.0,2628.9,0.38036]
[1727255038649,3.55361092,2629.0,2628.9,0.38036]
[1727255038857,3.55361088,2629.0,2628.9,0.38036]
[1727255039053,0.06312052,2629.0,2628.9,0.38036]
[1727255039751,3.55259229,2629.0,2628.9,0.38036]
[1727255039952,3.48947177,2629.0,2628.9,0.38036]
[1727255040347,3.48947177,2629.0,2628.8,1.4786]
[1727255040551,3.48947177,2628.9,2628.8,1.85898]
[1727255040951,0.38034,2629.1,2628.9,0.38036]
[1727255041160,0.38034,2629.1,2629.0,1.4865]
[1727255041351,0.44346295,2629.1,2629.0,1.4865]
[1727255041744,0.44346295,2629.1,2629.0,1.86685]
[1727255041745,0.06312295,2629.1,2629.0,1.86685]
[1727255042354,0.38033,2629.2,2629.0,1.86685]
[1727255044566,0.8077032,2629.3,2629.0,1.86685]
[1727255044754,0.8077032,2629.3,2629.2,1.1]
[1727255045654,0.4273832,2629.3,2629.2,1.1]
[1727255045855,0.8076932,2629.3,2629.2,1.1]
[1727255048458,0.38035,2629.0,2628.8,0.3786]
[1727255048653,0.3922,2628.9,2628.8,0.7785]
[1727255048854,0.3922,2628.9,2628.8,1.8785]
[1727255048855,0.7806,2628.9,2628.8,1.8785]
[1727255049458,0.7806,2628.9,2628.8,2.25888]
[1727255051260,0.7806,2628.9,2628.8,1.8785]
[1727255051867,1.16096,2628.9,2628.7,1.1]
[1727255054063,0.38038,2628.8,2628.7,1.1]
[1727255054264,0.7806,2628.9,2628.7,1.1]
[1727255054460,0.7806,2628.9,2628.6,1.1]
[1727255054766,0.3804,2628.7,2628.5,0.3673]
[1727255054966,0.3804,2628.7,2628.6,1.1]
[1727255061571,0.38039,2628.7,2628.6,1.1]
[1727255061868,1.73154,2628.9,2628.6,1.1]
[1727255061869,0.38039,2628.8,2628.6,1.1]
[1727255062069,0.38039,2628.7,2628.6,1.1]
[1727255063173,0.7806,2628.9,2628.6,1.1]
[1727255063373,0.38039,2628.7,2628.6,1.1]
[1727255063572,0.38039,2628.7,2628.6,1.4908]
[1727255065367,8.1118,2628.7,2628.4,0.99482907]
[1727255065572,8.1118,2628.7,2628.2,0.99482907]
[1727255065573,0.38045,2628.3,2628.2,0.99482907]
[1727255065964,0.38045,2628.3,2627.9,1.39912907]
[1727255065965,0.38049,2628.1,2627.9,1.39912907]
[1727255066170,0.3802,2628.0,2627.9,0.4043]
[1727255067067,0.3802,2628.0,2627.9,1.39912907]
[1727255067378,0.3802,2628.0,2627.9,0.4043]
[1727255074375,0.3802,2628.0,2627.9,0.78481]
[1727255074571,0.77196,2628.3,2627.9,0.4043]
[1727255074771,3.2078,2628.4,2628.2,0.38046]
[1727255074772,3.58824,2628.4,2628.2,0.38046]
[1727255074982,3.2078,2628.4,2628.3,2.2651]
[1727255075380,3.58824,2628.4,2628.3,2.2651]
[1727255076573,0.38044,2628.4,2628.3,2.2651]
[1727255078581,3.58822,2628.5,2628.3,2.64555]
[1727255078775,0.38042,2628.5,2628.3,2.2651]
[1727255078973,0.38042,2628.5,2628.3,2.64555]
[1727255079576,0.38042,2628.5,2628.3,2.2651]
[1727255079776,1.1525,2628.7,2628.5,0.38042]
[1727255079981,1.1525,2628.7,2628.6,1.5023]
[1727255082880,0.7721,2628.7,2628.6,1.5023]
[1727255083088,1.15249,2628.7,2628.6,1.5023]
[1727255083285,1.15249,2628.7,2628.6,0.4023]
[1727255092685,0.7721,2628.7,2628.6,0.4023]
[1727255093292,1.15249,2628.7,2628.6,0.4023]
[1727255096990,0.7721,2628.7,2628.6,0.4023]
[1727255097492,1.15249,2628.7,2628.6,0.4023]
[1727255098885,2.99097161,2629.0,2628.6,1.5023]
[1727255099187,0.38039,2628.8,2628.7,0.7537]
[1727255101179,0.9884732,2629.3,2628.7,4.5577]
[1727255101180,0.0376832,2629.3,2628.7,4.5577]
[1727255101381,0.38033,2629.2,2628.9,1.48036]
[1727255101581,0.38034,2629.1,2628.9,1.1]
[1727255101788,0.38034,2629.1,2629.0,0.3935]
[1727255102288,0.38035,2629.0,2628.7,1.74852907]
[1727255102486,0.3851,2628.9,2628.8,0.3935]
[1727255103191,0.3851,2628.9,2628.8,0.77388]
[1727255103388,0.392,2629.0,2628.8,1.87388]
[1727255103594,0.3851,2629.2,2628.9,1.1]
[1727255103894,0.7998932,2629.3,2629.0,0.38035]
[1727255104083,0.7998932,2629.3,2629.1,0.755]
[1727255104278,0.06312432,2629.2,2629.1,1.1345]
[1727255104682,0.7998932,2629.3,2629.1,1.1345]
[1727255104994,0.38032,2629.2,2629.1,1.1345]
[1727255105383,0.4195832,2629.3,2629.1,1.1345]
[1727255105578,0.38032,2629.2,2629.1,1.1345]
[1727255105790,0.7998932,2629.3,2629.1,1.1345]
[1727255107193,0.38032,2629.2,2629.1,1.1345]
[1727255109192,0.38032,2629.2,2628.3,1.21711]
[1727255109193,0.38035,2629.0,2628.8,1.1]
[1727255109690,0.38035,2629.0,2628.9,0.3716]
[1727255110193,0.74994,2629.1,2628.9,0.3716]
[1727255110599,0.38035,2629.0,2628.9,0.3716]
[1727255110789,0.74994,2629.1,2628.9,0.3716]
[1727255111303,0.4195832,2629.3,2628.9,0.75196]
[1727255111596,0.38033,2629.1,2629.0,0.7879]
[1727255112392,0.38033,2629.2,2629.0,1.16824]
[1727255112693,0.38033,2629.2,2629.1,1.1]
[1727255116603,0.38032,2629.2,2629.1,1.1]
[1727255121301,0.0376832,2629.3,2629.1,1.1]
[1727255121508,0.4179932,2629.3,2629.1,1.1]
[1727255121803,0.4179932,2629.3,2629.2,0.4028]
[1727255127107,0.38033,2629.1,2629.0,0.7879]
[1727255129296,3.36993671,2629.1,2629.0,0.7879]
[1727255130607,0.38033,2629.1,2629.0,0.7879]
[1727255131405,0.38035,2629.0,2628.9,0.3716]
[1727255132002,0.3776,2629.1,2628.9,0.3716]
[1727255132901,0.75794,2629.1,2629.0,3.804]
[1727255133102,0.0376832,2629.3,2629.0,9.43479007]
[1727255133302,0.4179932,2629.3,2629.2,1.1]
[1727255133504,0.4179932,2629.3,2629.2,1.4957]
[1727255133711,0.4179932,2629.3,2629.2,1.8952]
[1727255135712,0.4179932,2629.3,2629.2,0.7952]
[1727255136014,0.48111367,2629.3,2629.2,0.7952]
[1727255136403,0.48111367,2629.3,2629.2,0.3995]
[1727255136603,0.38032,2629.2,2629.0,0.4042]
[1727255136815,1.13882,2629.2,2629.0,0.4042]
[1727255137002,0.38033,2629.1,2629.0,0.4042]
[1727255141518,4.91713,2629.2,2628.8,1.37252907]
[1727255141719,0.38036,2629.0,2628.8,1.74822907]
[1727255142615,0.38035,2629.0,2628.8,1.74822907]
[1727255144218,0.38035,2629.0,2628.9,0.99482907]
[1727255145823,0.38035,2629.0,2628.8,0.7534]
[1727255146117,4.32168671,2629.1,2628.7,0.4029]
[1727255146327,0.77957,2628.9,2628.7,0.4029]
[1727255146512,0.3672,2628.8,2628.7,0.4029]
[1727255146711,0.74758,2628.8,2628.7,0.4029]
[1727255148616,0.3672,2628.8,2628.7,0.4029]
[1727255148913,0.74758,2628.8,2628.7,0.4029]